fUSD/lending_fUSD_20260418
["ID","MTS","AMOUNT","RATE_DAILY","PERIOD"]
[420675784,1776456101737,-362.921462,0.00041096,120]
[420675785,1776456101790,-362.921462,0.00041096,120]
[420675786,1776456101843,-362.921462,0.00041096,120]
[420675787,1776456101895,-362.921462,0.00041096,120]
[420675788,1776456101947,-362.921462,0.00041096,120]
[420675789,1776456101998,-362.921462,0.00041096,120]
[420675790,1776456102050,-362.921462,0.00041096,120]
[420675791,1776456102103,-362.921462,0.00041096,120]
[420675792,1776456102154,-362.921462,0.00041096,120]
[420675793,1776456102206,-362.921462,0.00041096,120]
[420675794,1776456102257,-362.921462,0.00041096,120]
[420675795,1776456102307,-362.921462,0.00041096,120]
[420675796,1776456102358,-362.921462,0.00041096,120]
[420675797,1776456102408,-362.921462,0.00041096,120]
[420675798,1776456102456,-362.921462,0.00041096,120]
[420675799,1776456102507,-362.921462,0.00041096,120]
[420675800,1776456102559,-362.921452,0.00041096,120]
[420675801,1776456102612,-151.0,0.00041096,120]
[420675802,1776456102665,-151.0,0.00041096,120]
[420675803,1776456102718,-151.0,0.00041096,120]
[420675804,1776456102771,-151.0,0.00041096,120]
[420675805,1776456102823,-151.0,0.00041096,120]
[420675806,1776456102876,-151.0,0.00041096,120]
[420675807,1776456102928,-151.0,0.00041096,120]
[420675808,1776456102981,-151.0,0.00041096,120]
[420675809,1776456103031,-151.0,0.00041096,120]
[420675810,1776456103080,-151.0,0.00041096,120]
[420675811,1776456103128,-151.0,0.00041096,120]
[420675812,1776456103176,-151.0,0.00041096,120]
[420675813,1776456103225,-151.0,0.00041096,120]
[420675814,1776456103275,-266.142748,0.00041096,120]
[420675815,1776456103324,-1643.0,0.00041096,120]
[420675816,1776456103372,-10000.0,0.00041096,120]
[420675817,1776456103421,-600.0,0.00041096,120]
[420675818,1776456103469,-2000.0,0.00041096,120]
[420675819,1776456103517,-259.0,0.00041096,120]
[420675820,1776456103568,-422.0,0.00041096,60]
[420675821,1776456103618,-422.0,0.00041096,60]
[420675822,1776456103669,-422.0,0.00041096,60]
[420675823,1776456103720,-422.0,0.00041096,60]
[420675824,1776456103771,-422.0,0.00041096,60]
[420675825,1776456103823,-422.0,0.00041096,60]
[420675826,1776456103876,-422.0,0.00041096,60]
[420675827,1776456103930,-422.0,0.00041096,60]
[420675828,1776456103981,-422.0,0.00041096,60]
[420675829,1776456104034,-422.0,0.00041096,60]
[420675830,1776456104083,-422.0,0.00041096,60]
[420675831,1776456104130,-422.0,0.00041096,60]
[420675832,1776456104179,-422.0,0.00041096,60]
[420675833,1776456104228,-422.0,0.00041096,60]
[420675834,1776456104277,-422.0,0.00041096,60]
[420675835,1776456104326,-422.0,0.00041096,60]
[420675836,1776456104375,-422.0,0.00041096,60]
[420675837,1776456104425,-422.0,0.00041096,60]
[420675838,1776456104474,-422.0,0.00041096,60]
[420675839,1776456104523,-422.0,0.00041096,60]
[420675840,1776456104574,-422.0,0.00041096,60]
[420675841,1776456104624,-422.0,0.00041096,60]
[420675842,1776456104676,-422.0,0.00041096,60]
[420675843,1776456104726,-425.29440197,0.00041096,60]
[420675844,1776456104777,-284.34774268,0.00041096,120]
[420675845,1776456104828,-155.11488082,0.00041096,120]
[420675846,1776456104878,-1207.99,0.000411,120]
[420675847,1776456104930,-171.0,0.000411,120]
[420675848,1776456104981,-212.96480515,0.00041105,120]
[420675849,1776456105031,-300.0,0.00041151,100]
[420675850,1776456105082,-2000.0,0.00041163,120]
[420675851,1776456105133,-1000.0,0.000412,120]
[420675852,1776456105183,-1000.0,0.000412,120]
[420675853,1776456105629,-1000.0,0.000412,120]
[420675854,1776456105685,-1000.0,0.000412,120]
[420675855,1776456105739,-1000.0,0.000412,120]
[420675856,1776456105795,-1000.0,0.000412,120]
[420675857,1776456105847,-1000.0,0.000412,120]
[420675858,1776456105900,-1201.19,0.000412,120]
[420675859,1776456105955,-770.45601862,0.00041219,120]
[420675860,1776456106005,-500.0,0.00041232,120]
[420675861,1776456106055,-200.0,0.00041249,90]
[420675862,1776456106106,-2000.0,0.00041299,120]
[420675863,1776456106155,-1000.0,0.000413,120]
[420675864,1776456106207,-300.0,0.00041315,100]
[420675865,1776456106261,-150.0,0.00041382,120]
[420675866,1776456106312,-1000.0,0.000414,60]
[420675867,1776456106362,-1000.0,0.000414,120]
[420675868,1776456106413,-200.0,0.00041414,120]
[420675869,1776456106465,-300.0,0.00041425,120]
[420675870,1776456106516,-2000.0,0.00041435,120]
[420675871,1776456106568,-7814.11352595,0.0004145,120]
[420675872,1776456106620,-335.61,0.00041452,120]
[420675873,1776456106673,-327.36,0.00041452,120]
[420675874,1776456106725,-1000.0,0.000415,120]
[420675875,1776456106777,-1000.0,0.000415,120]
[420675876,1776456106831,-1000.0,0.000415,120]
[420675877,1776456106883,-555.92226989,0.000415,120]
[420675878,1776456106937,-2679.09222369,0.000415,120]
[420675879,1776456106987,-756.6,0.000415,120]
[420675880,1776456107036,-153.0,0.000415,120]
[420675881,1776456107086,-195.0,0.000415,120]
[420675882,1776456107135,-643.0,0.000415,120]
[420675883,1776456107183,-1218.78658955,0.00041517,120]
[420675884,1776456107231,-770.45601862,0.0004153,120]
[420675885,1776456107279,-161.0,0.00041538,120]
[420675886,1776456107329,-2000.0,0.0004157,120]
[420675887,1776456107378,-300.0,0.00041589,120]
[420675888,1776456107427,-200.0,0.000416,91]
[420675889,1776456107479,-500.0,0.00041605,120]
[420675890,1776456107529,-1701.427726,0.0004163,120]
[420675891,1776456107580,-500.0,0.00041643,120]
[420675892,1776456107635,-300.0,0.00041644,120]
[420675893,1776456107687,-770.45601862,0.00041647,120]
[420675894,1776456107742,-2000.0,0.00041671,120]
[420675895,1776456107794,-2000.0,0.00041671,120]
[420675896,1776456107846,-171.0,0.000417,120]
[420675897,1776456107900,-10372.0,0.000417,117]
[420675898,1776456107954,-2000.0,0.00041706,120]
[420675899,1776456108004,-4800.0,0.00041735,120]
[420675900,1776456108053,-45068.30217525,0.0004175,120]
[420675901,1776456108103,-284.34774268,0.00041781,120]
[420675902,1776456108155,-770.45601862,0.00041782,120]
[420675903,1776456108209,-1000.0,0.000418,120]
[420675904,1776456108262,-100000.0,0.000418,60]
[420675905,1776456108313,-100000.0,0.000418,70]
[420675906,1776456108363,-100000.0,0.000418,80]
[420675907,1776456108413,-1000.0,0.000418,120]
[420675908,1776456108464,-380.44454091,0.000418,90]
[420675909,1776456108515,-2291.17637896,0.000418,120]
[420675910,1776456108567,-300.0,0.00041808,120]
[420675911,1776456108619,-600.0,0.00041815,120]
[420675912,1776456108671,-4800.0,0.00041826,90]
[420675913,1776456108724,-2000.0,0.00041842,120]
[420675914,1776456108777,-1000.0,0.0004188,120]
[420675915,1776456108834,-1000.0,0.0004188,120]
[420675916,1776456108886,-1000.0,0.0004188,120]
[420675917,1776456108940,-1000.0,0.0004188,120]
[420675918,1776456108996,-1000.0,0.0004188,120]
[420675919,1776456109050,-200.0,0.00041897,93]
[420675920,1776456109105,-5176.68844016,0.000419,120]
[420675921,1776456109157,-5000.0,0.000419,120]
[420675922,1776456109208,-1587.76474629,0.000419,120]
[420675923,1776456109385,-7788.9113183,0.000419,120]
[420675924,1776456109436,-3431.0,0.000419,120]
[420675925,1776456109486,-270000.0,0.000419,120]
[420675926,1776456109536,-5755.0,0.000419,120]
[420675927,1776456109588,-4800.0,0.00041918,60]
[420675928,1776456109640,-4000.0,0.0004195,90]
[420675929,1776456109691,-300.0,0.00041973,120]
[420675930,1776456109742,-2000.0,0.00041977,120]
[420675931,1776456109792,-1000.0,0.00042,120]
[420675932,1776456109842,-1000.0,0.00042,120]
[420675933,1776456109893,-360.56,0.00042,120]
[420675934,1776456109946,-369.27914641,0.00042,120]
[420675935,1776456109997,-341.05470915,0.00042,120]
[420675936,1776456110046,-1000.0,0.00042,120]
[420675937,1776456110096,-500.0,0.00042,120]
[420675938,1776456110146,-160.0,0.00042,120]
[420675939,1776456110195,-10000.0,0.00042,120]
[420675940,1776456110246,-62959.0,0.00042,120]
[420675941,1776456110298,-500.0,0.00042,120]
[420675942,1776456110349,-183.31,0.00042,120]
[420675943,1776456110398,-354.34417753,0.00042,120]
[420675944,1776456110447,-1099.2311813,0.00042,120]
[420675945,1776456110505,-194.17717183,0.00042,120]
[420675946,1776456110558,-980.00577532,0.00042,120]
[420675947,1776456110612,-4466.36865406,0.00042,120]
[420675948,1776456110664,-1000.0,0.00042,120]
[420675949,1776456110718,-1000.0,0.00042,120]
[420675950,1776456110769,-500.0,0.00042,120]
[420675951,1776456110820,-10000.0,0.00042,120]
[420675952,1776456110871,-1000.0,0.00042,120]
[420675953,1776456110921,-469.49198098,0.00042,120]
[420675954,1776456110971,-1976.69601256,0.00042,120]
[420675955,1776456111020,-1320.38638991,0.00042,60]
[420675956,1776456111071,-50000.0,0.00042,90]
[420675957,1776456111123,-50000.0,0.00042,87]
[420675958,1776456111172,-12498.49063268,0.00042,120]
[420675959,1776456120974,500.0,6.361e-05,2]
[420675960,1776456125411,-250.0,6.997e-05,2]
[420675961,1776456125433,-250.0,7.181e-05,2]
[420675963,1776456232729,-243.40964805,7.38e-05,2]
[420675971,1776456631649,-250.0,7.503e-05,2]
[420675972,1776456631659,-328.04010058,7.627e-05,2]
[420675973,1776456631753,-1939.175,7.627e-05,2]
[420675974,1776456631765,-7287.17489942,7.627e-05,2]
[420675975,1776456631775,-260.6,7.66e-05,2]
[420675976,1776456631784,-2883.33533211,7.86e-05,2]
[420675977,1776456631796,-340.88466789,7.86e-05,2]
[420675978,1776456631806,-394.41554348,7.888e-05,2]
[420675979,1776456631815,-1852.42,7.952e-05,2]
[420675980,1776456631825,-1533.657722,8e-05,2]
[420675981,1776456631835,-250.0,8.118e-05,2]
[420675982,1776456631844,-193.0,8.118e-05,2]
[420675983,1776456631854,-250.0,8.118e-05,2]
[420675984,1776456631863,-150.0,8.22e-05,2]
[420675985,1776456631873,-202.97,8.258e-05,2]
[420675986,1776456631883,-150.0,8.442e-05,2]
[420675987,1776456631892,-784.2499,8.521e-05,2]
[420675988,1776456631902,-500.0,8.523e-05,2]
[420675990,1776456631912,-502.84265253,8.523e-05,2]
[420675992,1776456631921,-500.0,8.523e-05,2]
[420675993,1776456631930,-500.0,8.523e-05,2]
[420675996,1776456631941,-500.0,8.523e-05,2]
[420675998,1776456631951,-500.0,8.523e-05,2]
[420676000,1776456631960,-500.72366847,8.523e-05,2]
[420676002,1776456631970,-500.0,8.523e-05,2]
[420676003,1776456631979,-150.0,8.54e-05,2]
[420676005,1776456631988,-364.20982466,8.541e-05,2]
[420676007,1776456632000,-135.79017534,8.541e-05,2]
[420676009,1776456632009,-500.0,8.541e-05,2]
[420676011,1776456632019,-500.0,8.541e-05,2]
[420676013,1776456632029,-500.0,8.541e-05,2]
[420676015,1776456632038,-500.0,8.541e-05,2]
[420676017,1776456632047,-500.0,8.541e-05,2]
[420676019,1776456632057,-500.0,8.541e-05,2]
[420676021,1776456632066,-500.0,8.541e-05,2]
[420676023,1776456632075,-500.0,8.541e-05,2]
[420676025,1776456632085,-500.0,8.541e-05,2]
[420676027,1776456632096,-500.0,8.541e-05,2]
[420676029,1776456632105,-500.0,8.541e-05,2]
[420676031,1776456632114,-500.0,8.541e-05,2]
[420676034,1776456632125,-500.0,8.541e-05,2]
[420676036,1776456632134,-500.0,8.541e-05,2]
[420676038,1776456632144,-500.0,8.541e-05,2]
[420676040,1776456632155,-500.0,8.541e-05,2]
[420676042,1776456632164,-500.0,8.541e-05,2]
[420676044,1776456632174,-500.0,8.541e-05,2]
[420676046,1776456632184,-500.0,8.541e-05,2]
[420676048,1776456632194,-500.0,8.541e-05,2]
[420676050,1776456632203,-302.07072861,8.541e-05,2]
[420676051,1776456632212,-500.0,8.541e-05,2]
[420676053,1776456632222,-500.0,8.541e-05,2]
[420676055,1776456632232,-500.0,8.541e-05,2]
[420676057,1776456632242,-500.0,8.541e-05,2]
[420676059,1776456632251,-6172.4209079,8.542e-05,2]
[420676171,1776456637913,-500.0,8.523e-05,2]
[420676172,1776456637923,-6230.3,8.542e-05,2]
[420676173,1776456637935,-14737.93532932,8.542e-05,2]
[420676174,1776456637968,-262343.26806278,8.542e-05,2]
[420676175,1776456637977,-500.0,8.548e-05,2]
[420676176,1776456637987,-500.0,8.553e-05,2]
[420676177,1776456637997,-500.0,8.554e-05,2]
[420676178,1776456638006,-459.07170494,8.554e-05,2]
[420676179,1776456638016,-500.0,8.554e-05,2]
[420676180,1776456638026,-500.0,8.554e-05,2]
[420676181,1776456638036,-500.0,8.554e-05,2]
[420676182,1776456638046,-464.21785204,8.554e-05,2]
[420676183,1776456638056,-500.0,8.554e-05,2]
[420676184,1776456638065,-500.0,8.554e-05,2]
[420676185,1776456638074,-366.32034119,8.554e-05,2]
[420676186,1776456638084,-50541.45285582,8.555e-05,2]
[420676187,1776456638096,-563.11570627,8.555e-05,2]
[420676188,1776456638112,-1108.79116273,8.555e-05,2]
[420676189,1776456638163,-46566.90967518,8.555e-05,2]
[420676190,1776456638172,-6781.9208,8.555e-05,2]
[420676191,1776456638182,-300.0,8.566e-05,2]
[420676192,1776456638191,-200.0,8.607e-05,2]
[420676193,1776456638200,-4647.1628,8.642e-05,2]
[420676194,1776456638210,-2500.0,8.642e-05,2]
[420676195,1776456638219,-500.0,8.723e-05,2]
[420676196,1776456638228,-151.0,8.739e-05,2]
[420676197,1776456638239,-151.0,8.739e-05,2]
[420676198,1776456638248,-173.702352,8.739e-05,2]
[420676199,1776456638257,-150.0,8.741e-05,2]
[420676200,1776456638268,-200.0,8.8e-05,3]
[420676201,1776456638280,-150.0,8.82e-05,2]
[420676202,1776456638290,-500.0,8.827e-05,2]
[420676203,1776456638301,-151.0,8.839e-05,2]
[420676204,1776456638312,-156.587,8.839e-05,2]
[420676205,1776456638321,-196.04254267,8.839e-05,2]
[420676206,1776456638330,-500.0,8.9e-05,3]
[420676207,1776456638339,-160.0,8.913e-05,2]
[420676208,1776456638349,-1507.8,8.964e-05,2]
[420676209,1776456638358,-700.0,9e-05,3]
[420676210,1776456638368,-218.35,9.035e-05,2]
[420676211,1776456638377,-1000.0,9.071e-05,2]
[420676212,1776456638387,-477.68136442,9.071e-05,2]
[420676214,1776456638396,-1000.0,9.071e-05,2]
[420676216,1776456638407,-1000.0,9.071e-05,2]
[420676218,1776456638416,-1000.0,9.071e-05,2]
[420676220,1776456638426,-1000.0,9.071e-05,2]
[420676222,1776456638436,-1000.0,9.071e-05,2]
[420676224,1776456638446,-1600.0,9.099e-05,2]
[420676226,1776456638455,-500.0,9.101e-05,2]
[420676228,1776456638464,-150.0,9.12e-05,2]
[420676230,1776456638474,-168.23,9.247e-05,2]
[420676232,1776456638483,-2000.0,9.247e-05,2]
[420676234,1776456638493,-1000.0,9.271e-05,2]
[420676236,1776456638502,-600.0,9.388e-05,2]
[420676238,1776456638511,-177.3,9.388e-05,2]
[420676240,1776456638520,-255.0,9.394e-05,2]
[420676242,1776456638530,-150.0,9.42e-05,2]
[420676244,1776456638539,-1348.0,9.435e-05,2]
[420676246,1776456638548,-1265.0,9.435e-05,2]
[420676248,1776456638557,-258.19,9.44e-05,2]
[420676250,1776456638566,-1219.0,9.537e-05,2]
[420676252,1776456638576,-926.0,9.537e-05,2]
[420676254,1776456638584,-2473.0,9.537e-05,2]
[420676256,1776456638594,-4587.36644575,9.537e-05,2]
[420676257,1776456638622,-1440.63355425,9.537e-05,2]
[420676258,1776456638632,-24400.0581132,9.61e-05,2]
[420676259,1776456638641,-1500.0,9.618e-05,2]
[420676260,1776456638650,-1500.0,9.618e-05,2]
[420676261,1776456638660,-1500.0,9.618e-05,2]
[420676262,1776456638669,-500.0,9.618e-05,2]
[420676263,1776456638678,-1500.0,9.618e-05,2]
[420676264,1776456638687,-202.97,9.621e-05,2]
[420676265,1776456638696,-9154.7214257,9.639e-05,2]
[420676266,1776456638705,-150.0,9.72e-05,2]
[420676267,1776456638714,-1000.0,9.818e-05,2]
[420676268,1776456638723,-151.0,9.84e-05,2]
[420676269,1776456638732,-250.0,9.865e-05,2]
[420676270,1776456638741,-151.0,9.877e-05,2]
[420676271,1776456638751,-622.0,9.999e-05,2]
[420676272,1776456638761,-3527.0,9.999e-05,2]
[420676273,1776456638770,-150.0,0.0001002,2]
[420676274,1776456638779,-1600.0,0.0001011,2]
[420676275,1776456638788,-630.66124612,0.00010166,2]
[420676276,1776456638798,-2000.0,0.00010166,2]
[420676277,1776456638808,-2000.0,0.00010166,2]
[420676278,1776456638817,-2000.0,0.00010166,2]
[420676279,1776456638826,-168.23,0.00010274,2]
[420676280,1776456638835,-2000.0,0.00010274,2]
[420676281,1776456638844,-150.0,0.0001032,2]
[420676282,1776456638854,-433.0,0.00010333,2]
[420676283,1776456638863,-151.0,0.00010376,2]
[420676284,1776456638872,-16217.3644002,0.00010379,2]
[420676285,1776456638884,-43745.87075221,0.00010379,2]
[420676286,1776456638895,-993.3784,0.00010379,2]
[420676290,1776456640171,-7615.0,0.00010379,2]
[420676291,1776456640434,-749.46900635,0.00010379,2]
[420676292,1776456640490,-60862.64256625,0.00010379,2]
[420676381,1776456645804,-399.0,8.837e-05,2]
[420676382,1776456645816,-241.0,8.854e-05,2]
[420676383,1776456645827,-267.0,8.872e-05,2]
[420676384,1776456645837,-3778.0,9.837e-05,2]
[420676385,1776456645848,-1660.07328408,0.00010379,2]
[420676386,1776456645965,-3145.32791874,0.00010379,2]
[420676393,1776456711146,-10021.00000343,0.00010379,2]
[420676394,1776456711157,-5110.37493883,0.00010379,2]
[420676395,1776456711169,-5460.00000146,0.00010379,2]
[420676396,1776456711180,-1685.999998,0.00010379,2]
[420676480,1776457831901,-200.0,8.219e-05,2]
[420676482,1776457831916,-500.0,8.223e-05,2]
[420676484,1776457831927,-500.0,8.223e-05,2]
[420676485,1776457831937,-312.67777592,8.223e-05,2]
[420676486,1776457831947,-500.48760192,8.223e-05,2]
[420676487,1776457831958,-337.59539564,8.223e-05,2]
[420676488,1776457832004,-162.40460436,8.223e-05,2]
[420676489,1776457832014,-500.0,8.223e-05,2]
[420676490,1776457832025,-500.0,8.223e-05,2]
[420676491,1776457832034,-500.0,8.223e-05,2]
[420676492,1776457832044,-150.0,8.232e-05,2]
[420676493,1776457832054,-500.0,8.24e-05,2]
[420676494,1776457832064,-6.05907922,8.24e-05,2]
[420676495,1776457832076,-493.94092078,8.24e-05,2]
[420676496,1776457832085,-193.05907922,8.24e-05,2]
[420676497,1776457832101,-306.94092078,8.24e-05,2]
[420676498,1776457832111,-250.0,8.24e-05,2]
[420676499,1776457832120,-173.0,8.24e-05,2]
[420676500,1776457832130,-1200.0,8.24e-05,2]
[420676501,1776457832139,-300.0,8.24e-05,2]
[420676502,1776457832149,-150.0,8.24e-05,2]
[420676503,1776457832163,-5665.60434547,8.241e-05,2]
[420676504,1776457832186,-24142.28295567,8.241e-05,2]
[420676505,1776457832197,-7393.85317137,8.241e-05,2]
[420676506,1776457832291,-3383.42896817,8.241e-05,2]
[420676507,1776457832304,-222629.70911849,8.241e-05,2]
[420676508,1776457832321,-26493.8281076,8.241e-05,2]
[420676509,1776457832332,-123428.80749879,8.241e-05,2]
[420676510,1776457832343,-43121.82265522,8.241e-05,2]
[420676511,1776457832376,-420.0,8.241e-05,2]
[420676512,1776457832387,-1948.34190546,8.241e-05,2]
[420676513,1776457832398,-1254.09285305,8.241e-05,2]
[420676514,1776457832421,-328.59381764,8.24e-05,2]
[420676515,1776457832431,-70343.32772575,8.241e-05,2]
[420676516,1776457832443,-3904.47098206,8.241e-05,2]
[420676518,1776457832460,-4268.01359096,8.241e-05,2]
[420676519,1776457832473,-624.61756477,8.241e-05,2]
[420676528,1776457838160,-467.4334257,8.241e-05,2]
[420676529,1776457838172,-339.88265974,8.241e-05,2]
[420676530,1776457838184,-313.36252217,8.241e-05,2]
[420676531,1776457838215,-75049.63873947,8.241e-05,2]
[420676532,1776457838226,-43745.87075221,8.241e-05,2]
[420676533,1776457838238,-993.3784,8.241e-05,2]
[420676534,1776457838250,-10915.79728157,8.241e-05,2]
[420676535,1776457838262,-6275.55825757,8.241e-05,2]
[420676536,1776457838288,-484214.33781874,8.241e-05,2]
[420676537,1776457838298,-500.0,8.259e-05,2]
[420676538,1776457838308,-77353.1332,8.341e-05,2]
[420676539,1776457838318,-151.0,8.438e-05,2]
[420676540,1776457838327,-151.0,8.438e-05,2]
[420676541,1776457838337,-1000.0,8.44e-05,2]
[420676542,1776457838346,-1000.0,8.44e-05,2]
[420676543,1776457838356,-150.0,8.532e-05,2]
[420676544,1776457838368,-1500.0,8.553e-05,2]
[420676545,1776457838377,-4544.91,8.764e-05,2]
[420676546,1776457838387,-1000.0,8.771e-05,2]
[420676547,1776457838396,-1000.0,8.771e-05,2]
[420676548,1776457838410,-1000.0,8.771e-05,2]
[420676549,1776457838420,-1000.0,8.771e-05,2]
[420676550,1776457838429,-500.0,8.819e-05,2]
[420676551,1776457838439,-1280.88388878,8.819e-05,2]
[420676552,1776457838448,-201.93286099,8.819e-05,2]
[420676553,1776457838458,-695.39793187,8.819e-05,2]
[420676554,1776457838468,-9211.34798985,8.819e-05,2]
[420676555,1776457838478,-200.0,8.819e-05,2]
[420676556,1776457838487,-500.0,8.819e-05,2]
[420676557,1776457838497,-500.0,8.819e-05,2]
[420676558,1776457838506,-500.0,8.819e-05,2]
[420676559,1776457838516,-500.0,8.819e-05,2]
[420676560,1776457838525,-500.0,8.819e-05,2]
[420676561,1776457838539,-500.0,8.819e-05,2]
[420676562,1776457838549,-500.0,8.819e-05,2]
[420676563,1776457838559,-500.0,8.819e-05,2]
[420676564,1776457838569,-500.0,8.819e-05,2]
[420676565,1776457838579,-743.50770149,8.819e-05,2]
[420676566,1776457838588,-500.0,8.819e-05,2]
[420676567,1776457838598,-201.93286099,8.819e-05,2]
[420676568,1776457838608,-500.0,8.819e-05,2]
[420676569,1776457838618,-500.0,8.819e-05,2]
[420676570,1776457838628,-174.61919141,8.819e-05,2]
[420676571,1776457838637,-151.0,8.819e-05,2]
[420676572,1776457838647,-1000.0,8.819e-05,2]
[420676573,1776457838658,-153.73506925,8.819e-05,2]
[420676574,1776457838667,-344.28897184,8.819e-05,2]
[420676576,1776457838677,-150.0,8.82e-05,2]
[420676578,1776457838686,-500.0,8.82e-05,2]
[420676580,1776457838696,-495.02160344,8.82e-05,2]
[420676582,1776457838706,-9552.16786547,8.874e-05,2]
[420676584,1776457838715,-9905.5980765,8.929e-05,2]
[420676586,1776457838725,-500.0,8.959e-05,2]
[420676588,1776457838735,-10272.10520533,8.984e-05,2]
[420676590,1776457838744,-37744.89,8.985e-05,2]
[420676592,1776457838754,-10652.17309792,9.039e-05,2]
[420676594,1776457838767,-1680.0,9.064e-05,2]
[420676597,1776457838778,-420.0,9.064e-05,2]
[420676599,1776457838787,-255.0,9.064e-05,2]
[420676601,1776457838797,-11046.30350255,9.094e-05,2]
[420676603,1776457838806,-150.0,9.12e-05,2]
[420676605,1776457838816,-11455.01673214,9.149e-05,2]
[420676607,1776457838825,-11878.85235123,9.204e-05,2]
[420676609,1776457838835,-12318.36988823,9.259e-05,2]
[420676611,1776457838844,-1940.2939981,9.314e-05,2]
[420676613,1776457838854,-1130.66124612,9.318e-05,2]
[420676615,1776457838864,-1500.0,9.318e-05,2]
[420676617,1776457838874,-1500.0,9.318e-05,2]
[420676619,1776457838883,-1500.0,9.318e-05,2]
[420676621,1776457838893,-209.40437684,9.367e-05,2]
[420676623,1776457838902,-771.01748645,9.367e-05,2]
[420676625,1776457838912,-322.15523751,9.367e-05,2]
[420676627,1776457838922,-181.08010149,9.367e-05,2]
[420676630,1776457838931,-1000.0,9.368e-05,2]
[420676632,1776457838941,-150.0,9.42e-05,2]
[420676633,1776457838950,-600.0,9.525e-05,2]
[420676635,1776457838960,-160.0,9.548e-05,2]
[420676637,1776457838969,-206.56,9.589e-05,2]
[420676638,1776457838978,-24400.0581132,9.61e-05,2]
[420676639,1776457838991,-150.0,9.72e-05,2]
[420676640,1776457839002,-1265.0,9.837e-05,2]
[420676641,1776457839011,-1219.0,9.837e-05,2]
[420676642,1776457839020,-926.0,9.837e-05,2]
[420676643,1776457839030,-1047.0,9.837e-05,2]
[420676644,1776457839040,-622.0,9.837e-05,2]
[420676645,1776457839050,-2000.0,9.866e-05,2]
[420676646,1776457839060,-2000.0,9.866e-05,2]
[420676647,1776457839070,-2000.0,9.866e-05,2]
[420676648,1776457839079,-293.07376852,9.915e-05,2]
[420676649,1776457839089,-799.54513345,9.915e-05,2]
[420676650,1776457839099,-187.78006525,9.915e-05,2]
[420676651,1776457839110,-2351.0,9.97e-05,2]
[420676652,1776457839120,-587.0,9.97e-05,2]
[420676653,1776457839129,-359.0,9.97e-05,2]
[420676654,1776457839139,-200.0,0.0001,2]
[420676655,1776457839149,-203.13,0.0001002,2]
[420676656,1776457839160,-151.0,0.00010047,2]
[420676657,1776457839170,-151.0,0.00010093,2]
[420676658,1776457839180,-182.34,0.00010093,2]
[420676659,1776457839190,-185.8519702,0.00010135,2]
[420676660,1776457839201,-7201.4701294,0.00010162,2]
[420676661,1776457839211,-6749.3625822,0.00010162,2]
[420676662,1776457839221,-65785.69327668,0.00010162,2]
[420676665,1776457841033,-266251.74072672,0.00010162,2]
[420676666,1776457841044,-150.0,0.00010184,2]
[420676667,1776457841053,-247.24638393,0.00010184,2]
[420676668,1776457841063,-150.0,0.00010184,2]
[420676669,1776457841072,-150.0,0.00010184,2]
[420676670,1776457841082,-150.0,0.00010184,2]
[420676671,1776457841092,-150.0,0.00010184,2]
[420676672,1776457841101,-150.0,0.00010184,2]
[420676673,1776457841110,-150.0,0.00010184,2]
[420676674,1776457841120,-150.0,0.00010184,2]
[420676675,1776457841129,-201.29039859,0.00010184,2]
[420676676,1776457841138,-150.0,0.00010184,2]
[420676677,1776457841147,-150.0,0.00010184,2]
[420676678,1776457841157,-150.0,0.00010184,2]
[420676679,1776457841166,-151.0,0.00010188,2]
[420676680,1776457841176,-33071.2974,0.00010279,2]
[420676681,1776457841185,-1000.0,0.00010279,2]
[420676682,1776457841195,-308.0,0.00010319,7]
[420676683,1776457841204,-294.0,0.00010319,7]
[420676684,1776457841213,-267.0,0.00010319,7]